bitfinex-derivatives/quotes_SOLF0:USTF0_20220109
["timestamp","ask_amount","ask_price","bid_price","bid_amount"]
[1641737920825,27.66479,139.82,139.74,3.9999]
[1641737921225,27.66479,139.82,139.72,27.66479]
[1641737921426,27.66479,139.82,139.73,3.9999]
[1641737921625,27.66479,139.82,139.72,27.66479]
[1641737921825,27.66479,139.82,139.74,4.06526734]
[1641737922025,27.66479,139.82,139.75,3.9999]
[1641737922226,0.9690309,139.81,139.75,3.9999]
[1641737922425,0.9690309,139.81,139.76,3.9999]
[1641737922825,0.9690309,139.81,139.73,1.788]
[1641737923028,0.9690309,139.84,139.75,11.15282]
[1641737923228,0.9690309,139.84,139.79,3.9999]
[1641737923527,0.9690309,139.84,139.8,7.15051841]
[1641737924128,0.9690309,139.86,139.8,7.15051841]
[1641737924329,0.9690309,139.83,139.8,7.15051841]
[1641737924929,0.9690309,139.86,139.82,3.9999]
[1641737925128,0.9690309,139.86,139.8,7.15051841]
[1641737925330,0.9690309,139.86,139.84,3.9999]
[1641737925731,0.9690309,139.86,139.82,5.974]
[1641737926128,8.7260309,139.86,139.8,1.786]
[1641737926329,8.7260309,139.86,139.79,3.9999]
[1641737926731,0.9690309,139.85,139.79,3.9999]
[1641737927030,0.9690309,139.85,139.77,7.15205264]
[1641737927230,0.9690309,139.85,139.79,3.9999]
[1641737927632,0.9690309,139.85,139.81,3.9999]
[1641737927830,0.9690309,139.85,139.79,3.9999]
[1641737928231,0.9690309,139.85,139.76,7.15230841]
[1641737928431,0.9690309,139.85,139.78,3.9999]
[1641737928832,0.9690309,139.86,139.76,34.81709841]
[1641737929032,0.9690309,139.86,139.79,3.9999]
[1641737932033,0.9690309,139.86,139.76,34.81709841]
[1641737932234,0.9690309,139.86,139.76,36.60509841]
[1641737932534,0.9690309,139.86,139.77,4.06431339]
[1641737932934,0.9690309,139.86,139.8,3.9999]
[1641737933136,0.9690309,139.86,139.81,3.9999]
[1641737933333,0.9690309,139.86,139.82,3.9999]
[1641737933836,0.9690309,139.86,139.81,3.9999]
[1641737934035,0.9690309,139.86,139.8,3.9999]
[1641737934435,0.9690309,139.86,139.78,1.786]
[1641737934636,0.9690309,139.86,139.8,3.9999]
[1641737935137,0.9690309,139.86,139.77,1.788]
[1641737935539,0.9690309,139.86,139.78,4.06399018]
[1641737935741,0.9690309,139.86,139.81,3.9999]
[1641737936441,0.9690309,139.86,139.77,1.788]
[1641737936642,7.0800309,139.86,139.78,3.9999]
[1641737936841,7.0800309,139.86,139.77,3.9999]
[1641737937041,0.9690309,139.85,139.77,3.9999]
[1641737938143,15.04077116,139.83,139.77,3.9999]
[1641737938743,0.9690309,139.82,139.77,3.9999]
[1641737938944,8.8470309,139.82,139.76,31.66469]
[1641737939443,8.8470309,139.82,139.76,27.66479]
[1641737939644,0.9690309,139.81,139.77,8.064323]
[1641737940046,0.9690309,139.81,139.77,3.9999]
[1641737940245,0.9690309,139.81,139.76,27.66479]
[1641737940447,0.9690309,139.83,139.76,27.66479]
[1641737940646,0.9690309,139.83,139.78,3.9999]
[1641737940847,0.9690309,139.83,139.79,3.9999]
[1641737941145,0.9690309,139.83,139.77,5.85194275]
[1641737941346,0.9690309,139.83,139.78,7.15154116]
[1641737941547,0.9690309,139.83,139.8,3.9999]
[1641737941847,0.9690309,139.84,139.81,3.9999]
[1641737942247,0.9690309,139.84,139.8,3.9999]
[1641737942447,0.9690309,139.84,139.78,7.15154116]
[1641737943146,0.9690309,139.84,139.79,4.0638177]
[1641737943346,0.9690309,139.84,139.79,8.0637177]
[1641737943548,0.9690309,139.84,139.79,3.9999]
[1641737944046,15.04077116,139.83,139.79,3.9999]
[1641737944247,22.88377116,139.83,139.79,3.9999]
[1641737944546,0.9690309,139.82,139.79,3.9999]
[1641737945147,0.9690309,139.82,139.76,29.45279]
[1641737945649,0.9690309,139.82,139.79,3.9999]
[1641737946249,0.9690309,139.83,139.79,3.9999]
[1641737946748,0.9690309,139.83,139.78,3.9999]
[1641737946947,0.9690309,139.83,139.77,8.93979689]
[1641737947148,0.9690309,139.83,139.77,7.15179689]
[1641737947448,0.9690309,139.83,139.78,4.0640978]
[1641737947847,0.9690309,139.83,139.79,3.9999]
[1641737949248,2.39283848,139.82,139.79,3.9999]
[1641737949650,0.9690309,139.81,139.77,7.15179689]
[1641737949849,0.9690309,139.81,139.79,3.9999]
[1641737950050,0.9690309,139.81,139.78,4.06401905]
[1641737951451,0.9690309,139.83,139.78,4.06401905]
[1641737952053,0.9690309,139.83,139.81,3.9999]
[1641737952352,2.39484974,139.82,139.81,3.9999]
[1641737952953,3.36388064,139.82,139.81,3.9999]
[1641737953957,3.36388064,139.82,139.8,3.9999]
[1641737954155,3.36388064,139.82,139.79,27.66479]
[1641737954354,0.9690309,139.82,139.79,27.66479]
[1641737954754,0.9690309,139.83,139.79,27.66479]
[1641737955458,0.9690309,139.84,139.79,27.66479]
[1641737955857,2.39441103,139.82,139.79,27.66479]
[1641737956358,0.9690309,139.81,139.79,27.66479]
[1641737957159,0.9690309,139.82,139.79,27.66479]
[1641737957963,2.39476427,139.81,139.79,27.66479]
[1641737958363,2.39476427,139.81,139.8,3.9999]
[1641737958963,2.39476427,139.81,139.79,27.66479]
[1641737959165,11.28976427,139.81,139.76,29.45279]
[1641737959363,8.895,139.81,139.74,15.04077116]
[1641737959568,16.05268377,139.81,139.71,41.38389046]
[1641737959863,16.05268377,139.81,139.71,45.38379046]
[1641737960166,16.05268377,139.81,139.71,43.59579046]
[1641737960368,15.04077116,139.77,139.68,15.21976851]
[1641737960567,21.56277116,139.77,139.73,3.9999]
[1641737960770,49.22756116,139.77,139.73,3.9999]
[1641737961167,49.22756116,139.77,139.71,3.9999]
[1641737961370,49.22756116,139.77,139.69,7.15614713]
[1641737961567,2.39476427,139.76,139.69,7.15614713]
[1641737961768,2.39476427,139.76,139.72,3.9999]
[1641737962372,2.39476427,139.76,139.75,3.9999]
[1641737962570,39.59589046,139.82,139.75,12.6099]
[1641737962770,9.75924196,139.81,139.76,27.66479]
[1641737962970,9.75924196,139.81,139.77,3.9999]
[1641737963669,9.75924196,139.84,139.76,27.66479]
[1641737964169,9.75924196,139.84,139.79,3.9999]
[1641737964370,9.75924196,139.84,139.79,12.1329]
[1641737964970,9.75924196,139.84,139.8,3.9999]
[1641737965271,27.66479,139.85,139.8,3.9999]
[1641737965471,27.66479,139.85,139.79,8.133]
[1641737965671,36.17579,139.85,139.76,27.66479]
[1641737966071,43.33168109,139.85,139.76,27.66479]
[1641737966270,36.17579,139.85,139.76,27.66479]
[1641737966871,39.59589046,139.83,139.76,25.66479]
[1641737967274,37.59589046,139.83,139.76,25.66479]
[1641737967573,9.75924196,139.84,139.76,25.66479]
[1641737967776,9.75924196,139.84,139.76,31.62479]
[1641737967974,9.75924196,139.84,139.76,35.62469]
[1641737968175,9.75924196,139.84,139.77,4.06427287]
[1641737968375,27.66479,139.85,139.77,4.06427287]
[1641737968577,27.66479,139.85,139.76,35.62469]
[1641737968978,20.32306007,139.84,139.76,35.62469]
[1641737969179,20.32306007,139.84,139.76,31.62479]
[1641737969679,20.32306007,139.84,139.76,35.62469]
[1641737969880,30.08230203,139.84,139.76,35.62469]
[1641737970278,30.08230203,139.84,139.76,9.9599]
[1641737970479,30.08230203,139.84,139.73,27.66479]
[1641737970680,20.32306007,139.83,139.74,3.9999]
[1641737971282,20.32306007,139.83,139.73,27.66479]
[1641737971484,20.32306007,139.83,139.72,3.9999]
[1641737971883,20.32306007,139.83,139.74,3.9999]
[1641737971884,30.08230203,139.83,139.74,3.9999]
[1641737972084,30.08230203,139.83,139.73,4.06524898]
[1641737972286,20.32306007,139.82,139.73,3.9999]
[1641737972485,28.33306007,139.82,139.73,3.9999]
[1641737972884,27.66479,139.81,139.72,27.66479]
[1641737973291,27.66479,139.81,139.73,4.06515093]
[1641737973688,0.97043181,139.8,139.73,4.06515093]
[1641737974586,0.97043181,139.8,139.76,3.9999]
[1641737974990,0.97043181,139.8,139.74,3.9999]
[1641737975192,0.97043181,139.8,139.72,27.66479]
[1641737975390,0.97043181,139.8,139.75,3.9999]
[1641737975589,0.97043181,139.8,139.72,27.66479]
[1641737975790,0.97043181,139.8,139.73,4.0649001]
[1641737975990,0.97043181,139.8,139.75,3.9999]
[1641737976990,0.97043181,139.8,139.76,3.9999]
[1641737977190,0.97043181,139.8,139.72,57.11758]
[1641737977391,8.08943181,139.8,139.75,3.9999]
[1641737977592,7.119,139.8,139.75,3.9999]
[1641737978191,0.97043181,139.79,139.75,3.9999]
[1641737978893,0.97043181,139.82,139.75,3.9999]
[1641737979093,0.97043181,139.82,139.72,57.11758]
[1641737979293,7.17643181,139.82,139.72,57.11758]
[1641737979694,7.17643181,139.82,139.75,3.9999]
[1641737979896,0.97043181,139.81,139.75,3.9999]
[1641737980295,0.97043181,139.81,139.72,57.11758]
[1641737980495,0.97043181,139.81,139.75,3.9999]
[1641737980795,0.97043181,139.82,139.75,3.9999]
[1641737980994,9.75316348,139.83,139.75,3.9999]
[1641737980995,0.97043181,139.8,139.75,3.9999]
[1641737981394,0.97043181,139.82,139.75,3.9999]
[1641737982197,0.97043181,139.82,139.76,4.06461294]
[1641737982999,0.97043181,139.82,139.73,4.06461294]
[1641737985103,0.97043181,139.82,139.75,3.9999]
[1641737985303,0.97043181,139.82,139.73,4.06461294]
[1641737985502,9.29043181,139.82,139.73,4.06461294]
[1641737986103,9.29043181,139.82,139.73,8.06451294]
[1641737986304,0.97043181,139.81,139.73,4.06461294]
[1641737986704,0.97043181,139.81,139.74,4.06461294]
[1641737987005,55.32958,139.75,139.71,4.06461294]
[1641737987204,61.74058,139.75,139.71,4.06461294]
[1641737987605,0.97043181,139.74,139.71,4.06461294]
[1641737989208,28.63522181,139.78,139.71,4.06461294]
[1641737989707,0.97043181,139.77,139.71,4.06461294]
[1641737990309,0.97043181,139.77,139.73,3.9999]
[1641737990508,0.97043181,139.77,139.71,4.06461294]
[1641737991108,0.97043181,139.77,139.71,8.06451294]
[1641737991807,0.97043181,139.78,139.72,4.06461294]
[1641737992007,0.97043181,139.76,139.72,4.06461294]
[1641737992406,0.97043181,139.78,139.71,8.06451294]
[1641737993009,0.97043181,139.78,139.72,4.06461294]
[1641737993207,27.66479,139.77,139.72,4.06461294]
[1641737993409,27.66479,139.77,139.71,8.06451294]
[1641737993808,0.97043181,139.76,139.72,4.06461294]
[1641737994510,7.33443181,139.76,139.72,4.06461294]
[1641737995110,0.97043181,139.75,139.71,4.06461294]
[1641738003426,9.51143181,139.75,139.71,4.06461294]
[1641738003626,27.66479,139.74,139.71,4.06461294]
[1641738004126,0.97043181,139.73,139.71,4.06461294]
[1641738005127,10.22743181,139.73,139.71,4.06461294]
[1641738005527,10.22743181,139.73,139.7,27.0]
[1641738005829,0.97043181,139.72,139.7,27.0]
[1641738007528,0.97043181,139.72,139.61,98.50023427]
[1641738007529,27.66479,139.71,139.63,19.20325346]
[1641738007729,27.66479,139.71,139.63,15.20335346]
[1641738007928,0.97043181,139.7,139.64,4.06759059]
[1641738008128,7.18443181,139.7,139.64,4.06759059]
[1641738008330,9.57690117,139.7,139.64,8.06749059]
[1641738008528,9.57690117,139.7,139.64,4.06759059]
[1641738008731,0.97043181,139.69,139.65,4.06759059]
[1641738009128,0.97043181,139.69,139.63,4.06759059]
[1641738012029,0.97043181,139.69,139.63,8.06749059]
[1641738012230,0.97043181,139.69,139.64,2.66934478]
[1641738012431,0.97043181,139.69,139.64,6.73693537]
[1641738012832,0.97043181,139.69,139.64,4.06759059]
[1641738013032,0.97043181,139.69,139.65,4.06759059]
[1641738013433,0.97043181,139.69,139.61,4.06759059]
[1641738013632,0.97043181,139.69,139.61,8.06749059]
[1641738014132,0.97043181,139.7,139.62,4.06759059]
[1641738014332,0.97043181,139.7,139.62,6.7364053]
[1641738014532,0.97043181,139.7,139.63,3.9999]
[1641738014833,0.97043181,139.7,139.62,6.7364053]
[1641738015133,8.44943181,139.7,139.64,4.06759059]
[1641738015533,0.97043181,139.69,139.66,3.9999]
[1641738015735,0.97043181,139.69,139.61,46.93573405]
[1641738015934,0.97043181,139.69,139.67,4.06759059]
[1641738016337,0.97043181,139.7,139.64,4.06759059]
[1641738016637,0.97043181,139.7,139.64,8.06749059]
[1641738016936,0.97043181,139.7,139.62,4.06759059]
[1641738017135,0.97043181,139.7,139.65,4.06759059]
[1641738017636,0.97043181,139.7,139.63,2.66815762]
[1641738017835,9.51143181,139.7,139.63,2.66815762]
[1641738018036,9.51143181,139.7,139.64,4.06759059]
[1641738018437,0.97043181,139.69,139.64,4.06759059]
[1641738020537,0.97043181,139.69,139.62,4.06759059]
[1641738021240,0.97043181,139.69,139.63,3.9999]
[1641738021539,0.97043181,139.7,139.63,3.9999]
[1641738021739,27.66479,139.67,139.64,4.06759059]
[1641738022239,0.97043181,139.66,139.64,4.06759059]
[1641738025541,0.97043181,139.66,139.61,4.06759059]
[1641738025741,0.97043181,139.66,139.63,3.9999]
[1641738025941,0.97043181,139.66,139.63,12.1869]
[1641738026141,0.97043181,139.66,139.65,3.9999]
[1641738026640,27.66479,139.71,139.65,3.9999]
[1641738026641,0.97043181,139.7,139.65,3.9999]
[1641738026842,0.97043181,139.66,139.65,8.06749059]
[1641738027640,0.97043181,139.66,139.65,4.06759059]
[1641738027842,0.97043181,139.66,139.65,6.73599733]
[1641738028545,0.97043181,139.66,139.65,4.06759059]
[1641738029042,0.97043181,139.66,139.63,4.06759059]
[1641738029946,28.63522181,139.66,139.63,4.06759059]
[1641738030344,0.97043181,139.65,139.63,4.06759059]
[1641738030744,0.97043181,139.65,139.62,4.06759059]
[1641738032546,0.97043181,139.65,139.59,4.06759059]
[1641738033045,0.97043181,139.65,139.6,2.67141079]
[1641738033745,0.97043181,139.65,139.61,4.06759059]
[1641738033945,27.66479,139.63,139.61,4.06759059]
[1641738034146,33.81679,139.63,139.61,4.06759059]
[1641738034546,0.97043181,139.62,139.61,4.06759059]
[1641738035448,0.97043181,139.62,139.61,6.74081599]
[1641738035948,28.63522181,139.62,139.58,15.20335346]
[1641738036649,28.63522181,139.62,139.57,25.7205917]
[1641738036849,27.66479,139.62,139.57,25.7205917]
[1641738037348,2.19238039,139.61,139.57,25.7205917]
[1641738037849,2.19238039,139.61,139.53,15.20335346]
[1641738038049,27.66479,139.56,139.54,3.9999]
[1641738038250,27.66479,139.56,139.54,4.06978822]
[1641738038449,27.66479,139.56,139.54,8.06968822]
[1641738038653,27.66479,139.56,139.54,19.27314168]
[1641738039151,27.66479,139.56,139.55,4.06978822]
[1641738039553,29.45033667,139.56,139.55,4.06978822]
[1641738040456,29.45033667,139.56,139.54,4.06978822]
[1641738040854,27.66479,139.56,139.54,4.06978822]
[1641738041656,34.18279,139.56,139.54,4.06978822]
[1641738042958,34.18279,139.56,139.52,4.06978822]
[1641738043458,34.18279,139.56,139.53,3.9999]
[1641738044063,27.66479,139.59,139.55,3.9999]
[1641738044259,70.2064,139.61,139.55,3.9999]
[1641738044463,27.66479,139.62,139.54,4.06978822]
[1641738044660,2.19044637,139.58,139.56,4.06978822]
[1641738044860,2.19044637,139.58,139.56,10.98078822]
[1641738045060,2.19044637,139.61,139.57,3.9999]
[1641738045263,2.19044637,139.61,139.58,3.9999]
[1641738045462,2.19044637,139.61,139.58,8.06968822]
[1641738045960,2.19044637,139.61,139.59,4.06978822]
[1641738047764,2.19044637,139.64,139.57,4.06978822]
[1641738048262,27.66479,139.62,139.57,4.06978822]
[1641738048762,27.66479,139.62,139.57,8.06968822]
[1641738048963,2.19044637,139.61,139.57,3.9999]
[1641738049364,2.19044637,139.61,139.58,4.06978822]
[1641738049863,2.19044637,139.61,139.55,8.06968822]
[1641738050266,2.19044637,139.61,139.56,4.06978822]
[1641738051067,2.19044637,139.61,139.55,8.06968822]
[1641738051269,2.19044637,139.61,139.58,3.9999]
[1641738051468,2.19044637,139.61,139.56,8.06968822]
[1641738051869,2.19044637,139.61,139.57,4.06978822]
[1641738053176,2.19044637,139.61,139.54,4.06978822]
[1641738053378,11.32344637,139.61,139.54,4.06978822]
[1641738053777,11.32344637,139.61,139.56,3.9999]
[1641738053977,2.19044637,139.6,139.56,3.9999]
[1641738054277,2.19044637,139.6,139.54,4.06978822]
[1641738054480,2.19044637,139.6,139.57,4.06978822]
[1641738054878,2.19044637,139.6,139.54,29.75743875]
[1641738055280,2.19044637,139.6,139.55,4.06978822]
[1641738056080,2.19044637,139.6,139.53,4.06978822]
[1641738056281,27.66479,139.54,139.53,4.06978822]
[1641738056480,34.16679,139.54,139.53,4.06978822]
[1641738059083,34.16679,139.54,139.52,4.06978822]
[1641738059283,6.502,139.54,139.52,4.06978822]
[1641738059483,27.66479,139.56,139.52,8.06968822]
[1641738059986,2.19118497,139.55,139.54,4.0]
[1641738060284,2.0,139.61,139.54,3.9999]
[1641738060586,2.0,139.61,139.57,3.9999]
[1641738061387,2.0,139.61,139.56,3.9999]
[1641738061788,1.9715379,139.6,139.57,4.06967653]
[1641738062389,8.5705379,139.6,139.57,4.06967653]
[1641738062588,8.5705379,139.6,139.55,4.06967653]
[1641738062992,1.9715379,139.59,139.54,4.06967653]
[1641738063191,1.9715379,139.59,139.55,3.9999]
[1641738063389,1.9715379,139.59,139.54,4.06967653]
[1641738063789,1.9715379,139.6,139.54,4.06967653]
[1641738064389,27.66479,139.57,139.54,4.06967653]
[1641738064589,34.66679,139.57,139.54,19.27302999]
[1641738065093,1.9715379,139.56,139.55,4.06967653]
[1641738065792,1.9715379,139.56,139.54,4.06967653]
[1641738065992,1.9715379,139.56,139.54,1e-08]
[1641738066390,27.66479,139.55,139.53,15.20335346]
[1641738066991,27.66479,139.55,139.5,29.71351723]
[1641738067193,27.66479,139.55,139.54,4.07080541]
[1641738067593,27.66479,139.55,139.51,4.07080541]
[1641738068295,27.66479,139.52,139.51,4.07080541]
[1641738068494,34.22979,139.52,139.51,4.07080541]
[1641738068994,6.565,139.52,139.51,4.07080541]
[1641738070095,27.66479,139.55,139.51,4.07080541]
[1641738072298,27.66479,139.55,139.51,8.07070541]
[1641738072498,34.28379,139.57,139.5,19.27415887]
[1641738072697,27.66479,139.57,139.5,19.27415887]
[1641738072897,27.66479,139.57,139.53,3.9999]
[1641738073498,27.66479,139.57,139.54,4.07080541]
[1641738076003,27.66479,139.57,139.52,4.07080541]
[1641738076202,97.28609,139.6,139.53,3.9999]
[1641738076803,97.28609,139.6,139.54,6.74421873]
[1641738077102,97.28609,139.6,139.55,8.07070541]
[1641738077503,97.28609,139.6,139.56,4.07080541]
[1641738077705,97.28609,139.6,139.56,6.74421873]
[1641738077906,27.66479,139.6,139.56,6.74421873]
[1641738078307,27.66479,139.6,139.57,4.07080541]
[1641738078507,27.66479,139.6,139.57,6.74421873]
[1641738079407,27.66479,139.6,139.58,4.07080541]
[1641738079809,27.66479,139.6,139.55,4.07080541]
[1641738080006,27.66479,139.6,139.55,8.07070541]
[1641738080607,27.66479,139.6,139.56,4.07080541]
[1641738081109,27.66479,139.6,139.56,6.74576635]
[1641738081708,27.66479,139.6,139.57,4.07080541]
[1641738081908,27.66479,139.6,139.58,3.9999]
[1641738082109,27.66479,139.6,139.57,6.74576635]
[1641738082308,27.66479,139.6,139.58,3.9999]
[1641738082710,2.0,139.61,139.59,2.67496094]
[1641738083110,2.0,139.61,139.6,4.07080541]
[1641738084011,2.0,139.61,139.6,5.41e-06]
[1641738084214,2.0,139.61,139.56,15.20335346]
[1641738084412,7.837,139.61,139.57,4.06986684]
[1641738084812,27.66479,139.58,139.56,15.20335346]
[1641738085013,35.49479,139.58,139.56,15.20335346]
[1641738085216,35.49479,139.58,139.55,10.51026377]
[1641738085413,35.49479,139.58,139.54,3.9999]
[1641738085613,35.49479,139.58,139.56,4.07021904]
[1641738086016,35.49479,139.58,139.55,4.07021904]
[1641738086916,35.49479,139.58,139.55,3.9999]
[1641738087314,35.49479,139.58,139.56,4.07021904]
[1641738087716,35.49479,139.58,139.56,6.74529429]
[1641738088115,35.49479,139.58,139.56,2.67507525]
[1641738088518,35.49479,139.58,139.54,3.9999]
[1641738089016,35.49479,139.58,139.55,4.07012632]
[1641738089216,35.49479,139.58,139.55,6.74532566]
[1641738089816,35.49479,139.58,139.56,4.07012632]
[1641738090016,35.49479,139.58,139.56,6.74532566]
[1641738090217,35.49479,139.58,139.52,15.20335346]
[1641738090218,35.49479,139.58,139.53,3.9999]
[1641738091419,35.49479,139.58,139.5,19.20335346]
[1641738091619,35.49479,139.58,139.54,3.75956298]
[1641738092919,35.49479,139.58,139.53,3.75956298]
[1641738093119,35.49479,139.58,139.53,18.96291644]
[1641738093821,35.49479,139.58,139.54,7.75946298]
[1641738094121,35.49479,139.58,139.55,3.75956298]
[1641738095023,35.49479,139.58,139.55,3.9999]
[1641738095223,35.49479,139.58,139.54,3.75956298]
[1641738095424,35.49479,139.58,139.56,3.75956298]
[1641738095827,35.49479,139.58,139.54,3.75956298]
[1641738097128,35.49479,139.58,139.55,3.9999]
[1641738097627,4.0699719,139.57,139.56,3.75956298]
[1641738103836,4.0699719,139.57,139.56,7.75946298]
[1641738104236,7.19e-05,139.57,139.56,7.75946298]
[1641738104640,2.0,139.6,139.56,7.75946298]
[1641738105036,2.0,139.6,139.56,3.9999]
[1641738105236,2.0,139.6,139.55,19.20325346]
[1641738105637,2.0,139.6,139.55,15.20335346]
[1641738105837,3.97306834,139.59,139.56,4.07000404]
[1641738109243,27.66479,139.58,139.56,4.07000404]
[1641738110042,3.97306834,139.57,139.55,4.07000404]
[1641738110443,3.97306834,139.57,139.53,25.71361723]
[1641738110645,3.97306834,139.57,139.54,3.9999]
[1641738110844,3.97306834,139.57,139.54,8.07024734]
[1641738111245,3.97306834,139.57,139.55,4.07034734]
[1641738114449,3.97306834,139.57,139.56,3.9999]
[1641738114849,68.3219,139.59,139.56,3.9999]
[1641738114850,3.97306834,139.58,139.56,3.9999]
[1641738115052,3.97306834,139.58,139.57,3.9999]
[1641738115252,3.97306834,139.59,139.57,8.07024734]
[1641738115650,3.97306834,139.59,139.58,4.07034734]
[1641738116151,42.86814346,139.64,139.58,10.8349]
[1641738116351,15.20335346,139.64,139.58,6.835]
[1641738116751,13.20335346,139.64,139.63,3.9999]
[1641738117652,16.77796701,139.64,139.63,3.9999]
[1641738117851,3.57461355,139.64,139.63,3.9999]
[1641738118252,27.66479,139.69,139.63,3.9999]
[1641738118651,27.66479,139.69,139.65,3.9999]
[1641738119052,40.55978096,139.71,139.67,3.9999]
[1641738119453,3.25605641,139.7,139.65,5.875]
[1641738119956,3.25605641,139.7,139.68,3.9999]
[1641738120156,3.25605641,139.7,139.68,10.9599]
[1641738120357,3.25605641,139.72,139.68,8.96]
[1641738120555,3.25615641,139.72,139.68,8.96]
[1641738121255,2.0001,139.72,139.68,8.96]
[1641738121856,2.65590625,139.71,139.68,8.96]
[1641738122259,2.65590625,139.72,139.68,8.96]
[1641738122662,2.65590625,139.71,139.68,8.96]
[1641738122858,2.65590625,139.71,139.68,10.9599]
[1641738123261,2.65590625,139.7,139.68,8.96]
[1641738123460,2.65590625,139.7,139.68,10.9599]
[1641738123660,2.65590625,139.69,139.68,10.9599]
[1641738124661,2.65590625,139.69,139.68,8.96]
[1641738124861,2.65590625,139.69,139.67,1.9999]
[1641738125062,2.65590625,139.69,139.64,34.82324234]
[1641738125363,2.65590625,139.69,139.68,1.9999]
[1641738125561,2.0,139.7,139.68,1.9999]
[1641738127562,2.0,139.7,139.66,4.0]
[1641738127761,2.0,139.7,139.69,1.9999]
[1641738128662,55.32958,139.74,139.69,1.9999]
[1641738128961,27.66479,139.74,139.68,4.0]
[1641738129162,25.66489,139.74,139.72,1.9999]
[1641738129763,25.66489,139.74,139.68,4.0]
[1641738129964,25.66489,139.74,139.72,1.9999]
[1641738130264,27.66499,139.74,139.71,1.9999]
[1641738130467,36.94599,139.74,139.71,1.9999]
[1641738131468,2.38219124,139.73,139.71,1.9999]
[1641738132265,53.32968,139.74,139.71,1.9999]
[1641738132767,55.32968,139.74,139.71,1.9999]
[1641738134170,55.32968,139.74,139.71,0.0001]
[1641738135774,2.38239303,139.73,139.71,0.0001]
[1641738140980,1.10826364,139.72,139.71,0.0001]
[1641738141778,3.49065667,139.72,139.71,0.0001]
[1641738146487,13.25887907,139.72,139.71,0.0001]
[1641738146887,15.25887907,139.72,139.71,0.0001]
[1641738148395,5.49065667,139.72,139.71,0.0001]
[1641738151092,15.25887907,139.72,139.71,0.0001]
[1641738153094,15.25887907,139.72,139.71,6.2741]
[1641738153495,5.49065667,139.72,139.71,6.2741]
[1641738154394,5.49065667,139.72,139.71,10.2741]
[1641738154595,5.49065667,139.72,139.71,6.2741]
[1641738154796,5.49065667,139.72,139.71,10.2741]
[1641738155695,5.49065667,139.72,139.71,6.2741]
[1641738162101,3.10826364,139.72,139.71,6.2741]
[1641738166203,5.50325104,139.72,139.71,6.2741]
[1641738166904,3.10826364,139.72,139.71,6.2741]
[1641738167307,3.10826364,139.72,139.71,0.0001]
[1641738167507,14.52516364,139.72,139.64,83.56799411]
[1641738167706,3.9999,139.7,139.64,15.21139411]
[1641738167906,10.52526364,139.72,139.63,15.21139411]
[1641738167907,3.9999,139.71,139.63,15.21139411]
[1641738168105,5.10816364,139.71,139.65,4.06768408]
[1641738168305,1.10826364,139.71,139.65,4.06768408]
[1641738168506,1.10826364,139.7,139.64,4.06768408]
[1641738168910,2.3944763,139.7,139.64,4.06768408]
[1641738169408,1.10826364,139.69,139.64,4.06768408]
[1641738171211,1.10826364,139.7,139.64,4.06768408]
[1641738171611,1.10826364,139.71,139.64,4.06768408]
[1641738172610,1.10826364,139.71,139.65,2.67325293]
[1641738172810,2.39450724,139.7,139.65,2.67325293]
[1641738173211,1.10826364,139.69,139.66,4.06768408]
[1641738174615,1.10826364,139.71,139.64,4.06768408]
[1641738175515,2.39476261,139.7,139.64,4.06768408]
[1641738176414,1.10826364,139.69,139.64,4.06768408]
[1641738177217,1.10826364,139.69,139.65,2.67321706]
[1641738177820,1.10826364,139.69,139.66,4.06768408]
[1641738179420,1.10826364,139.69,139.64,4.06768408]
[1641738180123,1.10826364,139.69,139.65,2.6730022]
[1641738181422,1.10826364,139.69,139.64,4.06768408]
[1641738183327,28.77305364,139.69,139.64,4.06768408]
[1641738183924,1.10826364,139.68,139.64,4.06768408]
[1641738186531,5.10816364,139.68,139.64,4.06768408]
[1641738187135,2.39436241,139.67,139.64,4.06768408]
[1641738189336,27.66479,139.65,139.64,4.06768408]
[1641738189537,27.66479,139.65,139.58,87.72422238]
[1641738189736,96.92219,139.65,139.58,80.56269411]
[1641738189936,96.92219,139.65,139.59,2.67333608]
[1641738190337,100.92209,139.65,139.59,2.67333608]
[1641738190838,3.9999,139.64,139.59,2.67333608]
[1641738191136,8.696,139.64,139.59,2.67333608]
[1641738192939,12.6959,139.64,139.59,2.67333608]
[1641738193140,3.9999,139.63,139.59,2.67333608]
[1641738193338,27.66479,139.61,139.59,2.67333608]
[1641738193539,36.19779,139.61,139.59,2.67333608]